[Event "Live Chess"]
[Site "Chess.com"]
[Date "2023.05.21"]
[Round "-"]
[White "1600x"]
[Black "Biranidun"]
[Result "1-0"]
[WhiteElo "1872"]
[BlackElo "2600"]
[TimeControl "300"]
[EndTime "17:59:33 PDT"]
[Termination "1600x won on time"]

1. e4 {[%clk 0:04:46.8]} 1... c5 {[%clk 0:04:58.4]} 2. Nf3 {[%clk 0:04:44.1]}
2... d6 {[%clk 0:04:57.8]} 3. d4 {[%clk 0:04:42.2]} 3... cxd4 {[%clk 0:04:57.7]}
4. c3 {[%clk 0:04:41]} 4... Nf6 {[%clk 0:04:57.6]} 5. cxd4 {[%clk 0:04:39.6]}
5... Nxe4 {[%clk 0:04:57.1]} 6. Bd3 {[%clk 0:04:38.1]} 6... d5 {[%clk
0:04:56.4]} 7. O-O {[%clk 0:04:36.3]} 7... Nf6 {[%clk 0:04:54.6]} 8. Nbd2 {[%clk
0:04:27.3]} 8... Nc6 {[%clk 0:04:54]} 9. Nb3 {[%clk 0:04:20.2]} 9... Bg4 {[%clk
0:04:52.3]} 10. Bg5 {[%clk 0:04:17.5]} 10... e6 {[%clk 0:04:50.9]} 11. h3 {[%clk
0:04:15.4]} 11... Bxf3 {[%clk 0:04:50]} 12. Qxf3 {[%clk 0:04:13.1]} 12... Be7
{[%clk 0:04:49.7]} 13. Rfd1 {[%clk 0:04:05.1]} 13... O-O {[%clk 0:04:48.3]} 14.
Qg3 {[%clk 0:04:00.4]} 14... Kh8 {[%clk 0:04:46.9]} 15. Qh4 {[%clk 0:03:59.3]}
15... g6 {[%clk 0:04:34.5]} 16. Nc5 {[%clk 0:03:57.3]} 16... Ng8 {[%clk
0:04:26.9]} 17. Nxb7 {[%clk 0:03:54.5]} 17... Qc7 {[%clk 0:03:03.8]} 18. Nc5
{[%clk 0:03:41.8]} 18... Bxg5 {[%clk 0:03:00.5]} 19. Qxg5 {[%clk 0:03:38.4]}
19... Nxd4 {[%clk 0:03:00]} 20. Rac1 {[%clk 0:03:35.2]} 20... Qe7 {[%clk
0:02:39]} 21. Qe3 {[%clk 0:03:33.6]} 21... Nf5 {[%clk 0:02:33.8]} 22. Bxf5
{[%clk 0:03:32.3]} 22... gxf5 {[%clk 0:02:33.7]} 23. Re1 {[%clk 0:03:30.8]}
23... Rfc8 {[%clk 0:02:24.3]} 24. Nd3 {[%clk 0:03:28.9]} 24... Nf6 {[%clk
0:02:17.5]} 25. Qd4 {[%clk 0:03:27]} 25... Kg8 {[%clk 0:02:15.1]} 26. Ne5 {[%clk
0:03:24.1]} 26... Ne4 {[%clk 0:01:59.9]} 27. f3 {[%clk 0:03:13.1]} 27... Nd6
{[%clk 0:01:53.8]} 28. Qf4 {[%clk 0:03:09.7]} 28... Rxc1 {[%clk 0:01:39.6]} 29.
Rxc1 {[%clk 0:03:06.6]} 29... Rc8 {[%clk 0:01:39.2]} 30. Qg3+ {[%clk 0:02:59.6]}
30... Kf8 {[%clk 0:01:30.6]} 31. Rxc8+ {[%clk 0:02:48.7]} 31... Nxc8 {[%clk
0:01:30.5]} 32. Qf4 {[%clk 0:02:47.3]} 32... Nb6 {[%clk 0:01:08.6]} 33. Qh6+
{[%clk 0:02:44.4]} 33... Kg8 {[%clk 0:01:07.9]} 34. Qf4 {[%clk 0:02:42.5]} 34...
f6 {[%clk 0:01:01.7]} 35. Nd3 {[%clk 0:02:38.4]} 35... Nc4 {[%clk 0:00:59.7]}
36. b3 {[%clk 0:02:35.7]} 36... Nd6 {[%clk 0:00:55.1]} 37. Qg3+ {[%clk 0:02:34]}
37... Kh8 {[%clk 0:00:52.2]} 38. Nf4 {[%clk 0:02:31]} 38... d4 {[%clk
0:00:50.2]} 39. Qh4 {[%clk 0:02:29.7]} 39... Kg8 {[%clk 0:00:48.1]} 40. g4
{[%clk 0:02:28]} 40... fxg4 {[%clk 0:00:46.5]} 41. Qxg4+ {[%clk 0:02:26]} 41...
Kf7 {[%clk 0:00:38.7]} 42. Qh4 {[%clk 0:02:24.6]} 42... Ke8 {[%clk 0:00:37.2]}
43. Qh5+ {[%clk 0:02:22.5]} 43... Kd7 {[%clk 0:00:36.3]} 44. Qc5 {[%clk
0:02:20.7]} 44... Nf5 {[%clk 0:00:31.1]} 45. Qxa7+ {[%clk 0:02:18.9]} 45... Ke8
{[%clk 0:00:30.6]} 46. Qa8+ {[%clk 0:02:16]} 46... Kf7 {[%clk 0:00:29.7]} 47.
Qh8 {[%clk 0:02:13.8]} 47... Qd6 {[%clk 0:00:21.2]} 48. Qxh7+ {[%clk 0:02:12.3]}
48... Ke8 {[%clk 0:00:20.8]} 49. Qg8+ {[%clk 0:02:11.1]} 49... Kd7 {[%clk
0:00:20.3]} 50. Qf7+ {[%clk 0:02:09.5]} 50... Ne7 {[%clk 0:00:19.5]} 51. Qxf6
{[%clk 0:02:07.4]} 51... d3 {[%clk 0:00:19.1]} 52. Nxd3 {[%clk 0:02:05.4]} 52...
Qxd3 {[%clk 0:00:17.8]} 53. a4 {[%clk 0:02:03.6]} 53... Qxb3 {[%clk 0:00:16.7]}
54. Qd4+ {[%clk 0:02:01.7]} 54... Nd5 {[%clk 0:00:15.3]} 55. Kf2 {[%clk
0:02:00.1]} 55... Qa2+ {[%clk 0:00:14]} 56. Kg3 {[%clk 0:01:58.8]} 56... Qb1
{[%clk 0:00:13.3]} 57. h4 {[%clk 0:01:57.1]} 57... Qg6+ {[%clk 0:00:12.2]} 58.
Kf2 {[%clk 0:01:55.5]} 58... Ke7 {[%clk 0:00:10.8]} 59. Qc5+ {[%clk 0:01:53.6]}
59... Kf6 {[%clk 0:00:10]} 60. a5 {[%clk 0:01:51.8]} 60... Qh6 {[%clk
0:00:07.7]} 61. Qd4+ {[%clk 0:01:50.2]} 61... Kf7 {[%clk 0:00:07.3]} 62. a6
{[%clk 0:01:48.8]} 62... Qc1 {[%clk 0:00:05.9]} 63. a7 {[%clk 0:01:41.7]} 63...
Qc2+ {[%clk 0:00:05.3]} 64. Kg3 {[%clk 0:01:40.3]} 64... Qg6+ {[%clk 0:00:04.5]}
65. Qg4 {[%clk 0:01:39]} 65... Qxg4+ {[%clk 0:00:02.4]} 66. fxg4 {[%clk
0:01:37.9]} 66... Nc7 {[%clk 0:00:02.3]} 67. Kf4 {[%clk 0:01:36.1]} 67... Kf6
{[%clk 0:00:02.2]} 68. g5+ {[%clk 0:01:34.4]} 68... Ke7 {[%clk 0:00:01.6]} 69.
h5 {[%clk 0:01:33.3]} 69... Kf7 {[%clk 0:00:01.2]} 70. Ke5 {[%clk 0:01:32.1]}
70... Kg7 {[%clk 0:00:00.6]} 71. g6 {[%clk 0:01:28.9]} 1-0

[Event "Live Chess"]
[Site "Chess.com"]
[Date "2023.05.21"]
[Round "-"]
[White "chessfiction"]
[Black "worldchessleaguelive"]
[Result "1-0"]
[WhiteElo "2347"]
[BlackElo "1362"]
[TimeControl "300"]
[EndTime "17:59:34 PDT"]
[Termination "chessfiction won on time"]

1. e4 {[%clk 0:04:51.2]} 1... d5 {[%clk 0:04:47.2]} 2. d4 {[%clk 0:04:51.1]}
2... dxe4 {[%clk 0:04:45.7]} 3. f3 {[%clk 0:04:49.4]} 3... exf3 {[%clk
0:04:44.5]} 4. Nxf3 {[%clk 0:04:49.3]} 4... Nf6 {[%clk 0:04:43]} 5. Bc4 {[%clk
0:04:48.8]} 5... e6 {[%clk 0:04:41.9]} 6. O-O {[%clk 0:04:47.2]} 6... Be7 {[%clk
0:04:41]} 7. Ne5 {[%clk 0:04:36.2]} 7... Nbd7 {[%clk 0:04:39.3]} 8. Nxf7 {[%clk
0:04:32.1]} 8... Kxf7 {[%clk 0:04:36.8]} 9. Qh5+ {[%clk 0:04:30.6]} 9... g6
{[%clk 0:04:35.7]} 10. Qh3 {[%clk 0:04:29.1]} 10... Nb6 {[%clk 0:04:25.9]} 11.
Bd3 {[%clk 0:04:28.1]} 11... e5 {[%clk 0:04:19]} 12. Qg3 {[%clk 0:04:25.4]}
12... Qxd4+ {[%clk 0:04:10.5]} 13. Be3 {[%clk 0:04:22.4]} 13... Qxb2 {[%clk
0:03:50.5]} 14. Nd2 {[%clk 0:04:18.7]} 14... Bf5 {[%clk 0:03:42.6]} 15. Bxf5
{[%clk 0:04:11.2]} 15... gxf5 {[%clk 0:03:41.5]} 16. Rab1 {[%clk 0:04:05.3]}
16... Qxc2 {[%clk 0:03:29.2]} 17. Qxe5 {[%clk 0:04:01.6]} 17... Rad8 {[%clk
0:02:55.3]} 18. Rbc1 {[%clk 0:03:53.8]} 18... Qxa2 {[%clk 0:02:42.2]} 19. Rxc7
{[%clk 0:03:52.4]} 19... Rhe8 {[%clk 0:02:29]} 20. Rxf5 {[%clk 0:03:44.7]} 20...
Qe6 {[%clk 0:02:02.2]} 21. Rxb7 {[%clk 0:03:10.1]} 21... Qxe5 {[%clk 0:01:55.9]}
22. Rxe5 {[%clk 0:03:10]} 22... Nbd5 {[%clk 0:01:38.2]} 23. Bxa7 {[%clk
0:02:58.4]} 23... Kg6 {[%clk 0:01:32.7]} 24. Nf3 {[%clk 0:02:55.3]} 24... Rd7
{[%clk 0:00:49.9]} 25. Rxd7 {[%clk 0:02:49.3]} 25... Nxd7 {[%clk 0:00:48.4]} 26.
Rxd5 {[%clk 0:02:48.6]} 26... Nf6 {[%clk 0:00:35.5]} 27. Rg5+ {[%clk 0:02:46.1]}
27... Kf7 {[%clk 0:00:34]} 28. Bd4 {[%clk 0:02:43.8]} 28... Rg8 {[%clk
0:00:29.6]} 29. Rf5 {[%clk 0:02:39.4]} 29... Ke6 {[%clk 0:00:23.9]} 30. Re5+
{[%clk 0:02:37]} 30... Kf7 {[%clk 0:00:20.7]} 31. h3 {[%clk 0:02:36.5]} 31...
Rd8 {[%clk 0:00:17.6]} 32. Ng5+ {[%clk 0:02:34.1]} 32... Kg6 {[%clk 0:00:13.7]}
33. Ne6 {[%clk 0:02:33.1]} 33... Rd6 {[%clk 0:00:11.6]} 34. Bf2 {[%clk
0:02:26.2]} 34... Rd1+ {[%clk 0:00:08.5]} 35. Re1 {[%clk 0:02:24.7]} 35... Rxe1+
{[%clk 0:00:07.2]} 36. Bxe1 {[%clk 0:02:24.6]} 36... Kf5 {[%clk 0:00:06.2]} 37.
Nd4+ {[%clk 0:02:22.9]} 37... Ke4 {[%clk 0:00:04.6]} 38. Nf3 {[%clk 0:02:22.8]}
38... Bc5+ {[%clk 0:00:03.1]} 39. Bf2 {[%clk 0:02:21.6]} 39... Bxf2+ {[%clk
0:00:01.6]} 40. Kxf2 {[%clk 0:02:21.5]} 40... Nh5 {[%clk 0:00:00.8]} 41. Ng5+
{[%clk 0:02:20.4]} 1-0

[Event "Live Chess"]
[Site "Chess.com"]
[Date "2023.05.21"]
[Round "-"]
[White "Jo1ts"]
[Black "grillage"]
[Result "0-1"]
[WhiteElo "820"]
[BlackElo "1802"]
[TimeControl "300"]
[EndTime "17:59:40 PDT"]
[Termination "grillage won by resignation"]

1. d4 {[%clk 0:04:57.3]} 1... Nf6 {[%clk 0:04:57.9]} 2. Bf4 {[%clk 0:04:56.2]}
2... e6 {[%clk 0:04:57]} 3. Nf3 {[%clk 0:04:53.8]} 3... b6 {[%clk 0:04:56]} 4.
e3 {[%clk 0:04:51.8]} 4... Bb7 {[%clk 0:04:55.5]} 5. Nbd2 {[%clk 0:04:49.4]}
5... Be7 {[%clk 0:04:52.2]} 6. Bd3 {[%clk 0:04:45.4]} 6... O-O {[%clk
0:04:47.7]} 7. c3 {[%clk 0:04:44.2]} 7... d6 {[%clk 0:04:46.8]} 8. Qc2 {[%clk
0:04:34.6]} 8... h6 {[%clk 0:04:42.8]} 9. Bg3 {[%clk 0:04:27.8]} 9... Nbd7
{[%clk 0:04:35]} 10. h4 {[%clk 0:04:20.8]} 10... Nh5 {[%clk 0:04:29.2]} 11. Bh2
{[%clk 0:04:07.2]} 11... c5 {[%clk 0:04:27.4]} 12. g4 {[%clk 0:03:46.5]} 12...
Nhf6 {[%clk 0:04:14.4]} 13. g5 {[%clk 0:03:44.6]} 13... Nh5 {[%clk 0:03:59.2]}
14. gxh6 {[%clk 0:03:40]} 14... gxh6 {[%clk 0:03:40.9]} 15. Rg1+ {[%clk
0:03:12.2]} 15... Kh8 {[%clk 0:03:38.2]} 16. dxc5 {[%clk 0:02:53.4]} 16... Nxc5
{[%clk 0:03:31.6]} 17. Bh7 {[%clk 0:02:46.3]} 17... f5 {[%clk 0:03:22.9]} 18.
Bg6 {[%clk 0:02:41.7]} 18... Nf6 {[%clk 0:03:16.4]} 19. Nc4 {[%clk 0:02:26.9]}
19... Bxf3 {[%clk 0:03:11]} 20. Rg3 {[%clk 0:02:05.3]} 20... Be4 {[%clk
0:03:08.4]} 21. O-O-O {[%clk 0:02:02.1]} 21... Bxc2 {[%clk 0:03:06.3]} 0-1

[Event "Live Chess"]
[Site "Chess.com"]
[Date "2023.05.21"]
[Round "-"]
[White "ClassyChameleon"]
[Black "WelshTiger"]
[Result "0-1"]
[WhiteElo "1114"]
[BlackElo "2351"]
[TimeControl "300"]
[EndTime "18:00:02 PDT"]
[Termination "WelshTiger won by resignation"]

1. e4 {[%clk 0:04:57.7]} 1... c5 {[%clk 0:04:52.9]} 2. Nc3 {[%clk 0:04:54.4]}
2... d6 {[%clk 0:04:52.3]} 3. Bc4 {[%clk 0:04:49.6]} 3... e6 {[%clk 0:04:50.3]}
4. Nf3 {[%clk 0:04:45.3]} 4... a6 {[%clk 0:04:49.6]} 5. O-O {[%clk 0:04:43.4]}
5... b5 {[%clk 0:04:47.9]} 6. Be2 {[%clk 0:04:39.8]} 6... Nf6 {[%clk 0:04:46.4]}
7. d4 {[%clk 0:04:36.7]} 7... b4 {[%clk 0:04:40.6]} 8. Na4 {[%clk 0:04:31.3]}
8... Nxe4 {[%clk 0:04:39.7]} 9. dxc5 {[%clk 0:04:26.9]} 9... Nxc5 {[%clk
0:04:37.3]} 10. Nxc5 {[%clk 0:04:25.4]} 10... dxc5 {[%clk 0:04:36.8]} 11. Qxd8+
{[%clk 0:04:24.4]} 11... Kxd8 {[%clk 0:04:36.6]} 12. Ne5 {[%clk 0:04:22.8]}
12... Ke8 {[%clk 0:04:31.4]} 13. Bf4 {[%clk 0:04:12.3]} 13... f6 {[%clk
0:04:29.1]} 14. Ng4 {[%clk 0:04:03.2]} 14... e5 {[%clk 0:04:28]} 15. Be3 {[%clk
0:03:59.8]} 15... Nc6 {[%clk 0:04:25.8]} 16. Bf3 {[%clk 0:03:58.1]} 16... Bd7
{[%clk 0:04:20.8]} 17. Rad1 {[%clk 0:03:54.5]} 17... Rc8 {[%clk 0:04:19.7]} 18.
h4 {[%clk 0:03:40.7]} 18... Nd4 {[%clk 0:04:16.5]} 19. Bxd4 {[%clk 0:03:37.5]}
19... cxd4 {[%clk 0:04:16.4]} 20. h5 {[%clk 0:03:27.7]} 20... Rxc2 {[%clk
0:04:11]} 21. Rb1 {[%clk 0:03:01.6]} 21... Be7 {[%clk 0:03:00.4]} 22. Be4 {[%clk
0:02:45.4]} 22... Rc7 {[%clk 0:02:57.7]} 23. Nh2 {[%clk 0:02:40]} 23... f5
{[%clk 0:02:54.9]} 24. Bd3 {[%clk 0:02:34.2]} 24... a5 {[%clk 0:02:51.2]} 25. f4
{[%clk 0:02:19.9]} 25... e4 {[%clk 0:02:50.1]} 26. Ba6 {[%clk 0:02:10.9]} 26...
d3 {[%clk 0:02:37.8]} 27. Rfd1 {[%clk 0:02:06]} 27... Bc5+ {[%clk 0:02:36.6]}
28. Kh1 {[%clk 0:02:01.4]} 28... Ke7 {[%clk 0:02:36.5]} 29. Nf1 {[%clk
0:02:00.1]} 29... Ra8 {[%clk 0:02:22.8]} 30. Bc4 {[%clk 0:01:54.3]} 30... Be6
{[%clk 0:02:20.9]} 31. Bxe6 {[%clk 0:01:52.6]} 31... Kxe6 {[%clk 0:02:19.7]} 32.
Nd2 {[%clk 0:01:51.8]} 32... Be3 {[%clk 0:02:16.6]} 33. g3 {[%clk 0:01:45.2]}
33... Rac8 {[%clk 0:02:14.7]} 34. Nb3 {[%clk 0:01:39.8]} 34... a4 {[%clk
0:02:12.5]} 35. Na5 {[%clk 0:01:36.4]} 35... Rc5 {[%clk 0:02:07.9]} 36. Nb7
{[%clk 0:01:34.2]} 36... Rb5 {[%clk 0:02:06.4]} 37. Re1 {[%clk 0:01:06.4]} 37...
Bd4 {[%clk 0:02:04.5]} 38. b3 {[%clk 0:00:59.1]} 38... a3 {[%clk 0:01:58.9]} 39.
Rbc1 {[%clk 0:00:50.8]} 39... Rxc1 {[%clk 0:01:53.3]} 40. Rxc1 {[%clk
0:00:49.8]} 40... Rxb7 {[%clk 0:01:52.8]} 41. Rc4 {[%clk 0:00:47.3]} 41... Rd7
{[%clk 0:01:49.5]} 42. Rxb4 {[%clk 0:00:45.7]} 42... d2 {[%clk 0:01:47.7]} 43.
Kh2 {[%clk 0:00:35.7]} 43... d1=Q {[%clk 0:01:45.1]} 44. Ra4 {[%clk 0:00:31.1]}
44... Qe2+ {[%clk 0:01:42.6]} 45. Kh3 {[%clk 0:00:30.2]} 45... Qg4+ {[%clk
0:01:41.9]} 0-1

[Event "Live Chess"]
[Site "Chess.com"]
[Date "2023.05.21"]
[Round "-"]
[White "WelshTiger"]
[Black "Biranidun"]
[Result "1-0"]
[WhiteElo "2364"]
[BlackElo "2569"]
[TimeControl "300"]
[EndTime "18:00:41 PDT"]
[Termination "WelshTiger won by resignation"]

1. e4 {[%clk 0:04:59.2]} 1... c5 {[%clk 0:04:56.4]} 2. Nf3 {[%clk 0:04:57.8]}
2... d6 {[%clk 0:04:55.3]} 3. c3 {[%clk 0:04:55.7]} 3... Nf6 {[%clk 0:04:54.7]}
4. h3 {[%clk 0:04:53.7]} 4... g6 {[%clk 0:04:54.2]} 5. Bd3 {[%clk 0:04:52.8]}
5... Bg7 {[%clk 0:04:53.5]} 6. Bc2 {[%clk 0:04:52.3]} 6... Nc6 {[%clk
0:04:52.6]} 7. d4 {[%clk 0:04:51.8]} 7... cxd4 {[%clk 0:04:51.7]} 8. cxd4 {[%clk
0:04:51.7]} 8... O-O {[%clk 0:04:51.1]} 9. O-O {[%clk 0:04:50.4]} 9... d5 {[%clk
0:04:50.5]} 10. e5 {[%clk 0:04:49.8]} 10... Ne4 {[%clk 0:04:49.9]} 11. Nbd2
{[%clk 0:04:49.1]} 11... Nxd2 {[%clk 0:04:49.2]} 12. Bxd2 {[%clk 0:04:47.7]}
12... Nb4 {[%clk 0:04:47.6]} 13. Bxb4 {[%clk 0:04:45.5]} 1-0

[Event "Live Chess"]
[Site "Chess.com"]
[Date "2023.05.21"]
[Round "-"]
[White "laminaaprod"]
[Black "SupremeTactician"]
[Result "1-0"]
[WhiteElo "2260"]
[BlackElo "2307"]
[TimeControl "300"]
[EndTime "18:01:03 PDT"]
[Termination "laminaaprod won by resignation"]

1. d4 {[%clk 0:04:57.4]} 1... f5 {[%clk 0:04:56.6]} 2. e4 {[%clk 0:04:52]} 2...
d6 {[%clk 0:04:54]} 3. exf5 {[%clk 0:04:50.7]} 3... Bxf5 {[%clk 0:04:53.9]} 4.
Bd3 {[%clk 0:04:50]} 4... Bxd3 {[%clk 0:04:51]} 5. Qxd3 {[%clk 0:04:49.9]} 5...
g6 {[%clk 0:04:50.3]} 6. Nf3 {[%clk 0:04:49.2]} 6... Bg7 {[%clk 0:04:49.6]} 7.
O-O {[%clk 0:04:48.9]} 7... Nf6 {[%clk 0:04:48.9]} 8. c4 {[%clk 0:04:47.8]} 8...
Qd7 {[%clk 0:04:47.9]} 9. d5 {[%clk 0:04:47.3]} 9... c6 {[%clk 0:04:46.7]} 10.
Ng5 {[%clk 0:04:44.4]} 10... O-O {[%clk 0:04:42.5]} 11. Ne6 {[%clk 0:04:43.1]}
11... Rf7 {[%clk 0:04:42.2]} 12. Nc3 {[%clk 0:04:42.4]} 12... cxd5 {[%clk
0:04:40.1]} 13. cxd5 {[%clk 0:04:41.9]} 13... Na6 {[%clk 0:04:39.3]} 14. Re1
{[%clk 0:04:32]} 14... Nc5 {[%clk 0:04:37.3]} 15. Nxc5 {[%clk 0:04:31.3]} 15...
dxc5 {[%clk 0:04:37.2]} 16. Bg5 {[%clk 0:04:30.5]} 16... Rd8 {[%clk 0:04:35.7]}
17. Rad1 {[%clk 0:04:30]} 17... b6 {[%clk 0:04:33]} 18. h3 {[%clk 0:04:22.7]}
18... Qd6 {[%clk 0:04:23.8]} 19. Bh4 {[%clk 0:04:19.1]} 19... Kh8 {[%clk
0:04:11.8]} 20. Bg3 {[%clk 0:03:42.1]} 20... Qd7 {[%clk 0:04:09.1]} 21. Be5
{[%clk 0:03:37.8]} 21... Ne8 {[%clk 0:04:06.3]} 22. Bxg7+ {[%clk 0:03:03.4]}
22... Nxg7 {[%clk 0:04:06.2]} 23. Ne4 {[%clk 0:03:02.6]} 23... Rf5 {[%clk
0:04:01.2]} 24. Nc3 {[%clk 0:01:55.1]} 24... Rdf8 {[%clk 0:03:54.6]} 25. Re2
{[%clk 0:01:52.8]} 25... Nh5 {[%clk 0:03:51.4]} 26. Ne4 {[%clk 0:01:40]} 26...
Nf4 {[%clk 0:03:49.2]} 27. Qc3+ {[%clk 0:01:39.3]} 27... Kg8 {[%clk 0:03:47.2]}
28. Red2 {[%clk 0:01:38.6]} 28... Nxd5 {[%clk 0:03:37.9]} 29. Qc4 {[%clk
0:01:26.1]} 29... e6 {[%clk 0:03:36.4]} 30. Ng3 {[%clk 0:01:19.7]} 30... Rg5
{[%clk 0:03:33.5]} 31. Re1 {[%clk 0:01:12.9]} 31... Rf4 {[%clk 0:03:24.9]} 32.
Rxd5 {[%clk 0:01:07.5]} 32... exd5 {[%clk 0:03:12.2]} 33. Qxf4 {[%clk
0:01:05.2]} 33... h6 {[%clk 0:03:09.2]} 34. h4 {[%clk 0:00:54.1]} 34... Rg4
{[%clk 0:03:08.1]} 35. Qxh6 {[%clk 0:00:53.8]} 35... Qf7 {[%clk 0:03:05.5]} 36.
h5 {[%clk 0:00:45.3]} 36... gxh5 {[%clk 0:03:01.5]} 37. Nxh5 {[%clk 0:00:40.5]}
37... Rg6 {[%clk 0:03:00.8]} 38. Qf4 {[%clk 0:00:36.1]} 38... Qxf4 {[%clk
0:02:54.6]} 39. Nxf4 {[%clk 0:00:36]} 39... Rd6 {[%clk 0:02:54.4]} 40. Rd1
{[%clk 0:00:35.4]} 40... d4 {[%clk 0:02:53.8]} 41. Kf1 {[%clk 0:00:35]} 41...
Kf7 {[%clk 0:02:53.1]} 42. Ke2 {[%clk 0:00:34.7]} 42... Kf6 {[%clk 0:02:53]} 43.
Kd3 {[%clk 0:00:34.3]} 43... Kf5 {[%clk 0:02:52]} 44. g3 {[%clk 0:00:34]} 44...
b5 {[%clk 0:02:51.4]} 45. b3 {[%clk 0:00:33]} 45... Rc6 {[%clk 0:02:49]} 46. Rc1
{[%clk 0:00:32.4]} 46... Ke5 {[%clk 0:02:47.4]} 47. Ne2 {[%clk 0:00:31.2]} 47...
Kd5 {[%clk 0:02:45.1]} 48. Nxd4 {[%clk 0:00:29.4]} 48... c4+ {[%clk 0:02:42.1]}
49. bxc4+ {[%clk 0:00:28.2]} 49... bxc4+ {[%clk 0:02:42]} 50. Kc3 {[%clk
0:00:27.8]} 50... Ra6 {[%clk 0:02:41.4]} 51. Rc2 {[%clk 0:00:26.1]} 51... Ra3+
{[%clk 0:02:40.5]} 52. Kb4 {[%clk 0:00:25.1]} 52... Rf3 {[%clk 0:02:38.2]} 53.
Nxf3 {[%clk 0:00:23.7]} 1-0

[Event "Live Chess"]
[Site "Chess.com"]
[Date "2023.05.21"]
[Round "-"]
[White "Pablo_dmp"]
[Black "KeithArkell"]
[Result "0-1"]
[WhiteElo "1862"]
[BlackElo "2605"]
[TimeControl "300"]
[EndTime "18:01:41 PDT"]
[Termination "KeithArkell won by resignation"]

1. e4 {[%clk 0:04:59.3]} 1... c6 {[%clk 0:04:57.4]} 2. d4 {[%clk 0:04:58.4]}
2... d5 {[%clk 0:04:56.6]} 3. e5 {[%clk 0:04:58.1]} 3... c5 {[%clk 0:04:55.7]}
4. dxc5 {[%clk 0:04:56.9]} 4... Nc6 {[%clk 0:04:55.1]} 5. f4 {[%clk 0:04:56]}
5... e6 {[%clk 0:04:53.5]} 6. Be3 {[%clk 0:04:53.8]} 6... d4 {[%clk 0:04:52.9]}
7. Bf2 {[%clk 0:04:52.2]} 7... Bxc5 {[%clk 0:04:52.1]} 8. Nd2 {[%clk 0:04:50.5]}
8... Nge7 {[%clk 0:04:49.9]} 9. a3 {[%clk 0:04:44.8]} 9... Nd5 {[%clk
0:04:47.5]} 10. Ne4 {[%clk 0:04:42.1]} 10... Be7 {[%clk 0:04:46.5]} 11. Qf3
{[%clk 0:04:29.9]} 11... O-O {[%clk 0:04:40.5]} 12. Bd3 {[%clk 0:04:27.9]} 12...
b6 {[%clk 0:04:33.5]} 13. Ne2 {[%clk 0:04:26]} 13... Ne3 {[%clk 0:04:27.8]} 14.
Bxe3 {[%clk 0:04:22.1]} 14... dxe3 {[%clk 0:04:27.1]} 15. Qxe3 {[%clk
0:04:19.5]} 15... Bb7 {[%clk 0:04:24.4]} 16. Qh3 {[%clk 0:04:16.7]} 16... g6
{[%clk 0:04:23.1]} 17. O-O {[%clk 0:03:59.5]} 17... Nd4 {[%clk 0:04:20.4]} 18.
Nxd4 {[%clk 0:03:56.8]} 18... Qxd4+ {[%clk 0:04:20.3]} 19. Nf2 {[%clk
0:03:52.4]} 19... Qxf4 {[%clk 0:04:17.4]} 20. Qg3 {[%clk 0:03:49.5]} 20... Qxg3
{[%clk 0:04:16.3]} 21. hxg3 {[%clk 0:03:49.4]} 21... Bc5 {[%clk 0:04:10.4]} 22.
Kh2 {[%clk 0:03:45.7]} 22... Bd4 {[%clk 0:04:00.4]} 23. c3 {[%clk 0:03:37.5]}
23... Bxe5 {[%clk 0:03:58.8]} 24. Ng4 {[%clk 0:03:35.5]} 24... Bg7 {[%clk
0:03:57.9]} 25. Rad1 {[%clk 0:03:11.9]} 25... Rfd8 {[%clk 0:03:55.4]} 26. Bc2
{[%clk 0:03:10.2]} 26... h5 {[%clk 0:03:52.3]} 27. Ne3 {[%clk 0:02:56.2]} 27...
Be5 {[%clk 0:03:51.2]} 28. Kh3 {[%clk 0:02:53.3]} 28... Kg7 {[%clk 0:03:49.6]}
29. Rxd8 {[%clk 0:02:43]} 29... Rxd8 {[%clk 0:03:46.9]} 30. Rd1 {[%clk
0:02:42.9]} 30... Rxd1 {[%clk 0:03:42.9]} 31. Bxd1 {[%clk 0:02:41.4]} 31... g5
{[%clk 0:03:40]} 32. Bxh5 {[%clk 0:02:37.5]} 32... f5 {[%clk 0:03:38.1]} 33. Nc4
{[%clk 0:02:31.7]} 33... g4+ {[%clk 0:03:36]} 34. Kh2 {[%clk 0:02:22.3]} 34...
Bc7 {[%clk 0:03:34.4]} 35. Be8 {[%clk 0:02:08.4]} 35... a6 {[%clk 0:03:31.6]}
36. Bd7 {[%clk 0:02:06.4]} 36... Kf6 {[%clk 0:03:30.1]} 37. b4 {[%clk 0:02:02]}
37... b5 {[%clk 0:03:28.3]} 38. Nb2 {[%clk 0:01:50]} 38... Ke7 {[%clk
0:03:26.4]} 39. Bxb5 {[%clk 0:01:29]} 39... axb5 {[%clk 0:03:24]} 40. a4 {[%clk
0:01:28.3]} 40... Be5 {[%clk 0:03:20.6]} 41. Nd1 {[%clk 0:01:23.8]} 41... bxa4
{[%clk 0:03:19.1]} 42. c4 {[%clk 0:01:23]} 42... a3 {[%clk 0:03:17.8]} 0-1